fUSD/lending_fUSD_20260427
["ID","MTS","AMOUNT","RATE_DAILY","PERIOD"]
[421250861,1777287165513,-971.15,0.00037808,120]
[421250862,1777287165523,-1898.91,0.00037808,120]
[421250863,1777287165532,-2008.02,0.00037808,120]
[421250864,1777287165542,-500.0,0.00037808,120]
[421250865,1777287165551,-546.88,0.00037808,120]
[421250866,1777287165560,-500.0,0.00037808,120]
[421250867,1777287165569,-933.2,0.00037808,120]
[421250868,1777287165579,-923.43,0.00037808,120]
[421250869,1777287165591,-814.23,0.00037808,7]
[421250870,1777287165600,-500.0,0.00037808,120]
[421250871,1777287165610,-545.89,0.00037808,120]
[421250872,1777287165619,-607.22,0.00037808,120]
[421250873,1777287165629,-1022.01,0.00037808,120]
[421250874,1777287165638,-1403.37,0.00037808,120]
[421250875,1777287165647,-996.98,0.00037808,120]
[421250876,1777287165657,-571.92,0.00037808,120]
[421250877,1777287165666,-500.0,0.00037808,120]
[421250878,1777287165675,-427.09096265,0.00037808,120]
[421250879,1777287165684,-500.0,0.00037808,120]
[421250880,1777287165693,-2027.39,0.00037808,120]
[421250881,1777287165702,-544.78,0.00037808,120]
[421250882,1777287165711,-1173.63,0.00037808,120]
[421250883,1777287165720,-580.92,0.00037808,120]
[421250884,1777287165940,-957.19,0.00037808,120]
[421250885,1777287165950,-500.0,0.00037808,120]
[421250886,1777287165960,-1129.42,0.00037808,120]
[421250887,1777287165970,-549.6,0.00037808,120]
[421250888,1777287165979,-500.0,0.00037808,120]
[421250889,1777287165989,-957.72,0.00037808,120]
[421250890,1777287165999,-2273.93,0.00037808,120]
[421250891,1777287166010,-531.34,0.00037808,120]
[421250892,1777287166019,-500.0,0.00037808,120]
[421250893,1777287166029,-826.33,0.00037808,120]
[421250894,1777287166038,-509.36,0.00037808,120]
[421250895,1777287166048,-1144.83,0.00037808,120]
[421250896,1777287166057,-870.72,0.00037808,120]
[421250897,1777287166067,-1987.57,0.00037808,120]
[421250898,1777287166076,-1889.91,0.00037808,120]
[421250899,1777287166085,-997.41,0.00037808,120]
[421250900,1777287166095,-645.47,0.00037808,120]
[421250901,1777287166104,-551.39,0.00037808,120]
[421250902,1777287166113,-607.71,0.00037808,120]
[421250903,1777287166123,-1410.28,0.00037808,120]
[421250904,1777287166132,-1075.28,0.00037808,120]
[421250905,1777287166142,-512.2,0.00037808,120]
[421250906,1777287166151,-571.84,0.00037808,120]
[421250907,1777287166161,-500.0,0.00037808,120]
[421250908,1777287166171,-670.88,0.00037808,120]
[421250909,1777287166180,-927.87,0.00037808,120]
[421250910,1777287166190,-733.46,0.00037808,120]
[421250911,1777287166199,-254.50842174,0.00037808,120]
[421250912,1777287166209,-845.56,0.00037808,120]
[421250913,1777287166219,-500.0,0.00037808,120]
[421250914,1777287166229,-1708.75,0.00037808,120]
[421250915,1777287166238,-1389.02,0.00037808,120]
[421250916,1777287166247,-969.99,0.00037808,120]
[421250917,1777287166257,-721.4,0.00037808,120]
[421250918,1777287166266,-832.2,0.00037808,120]
[421250919,1777287166276,-1256.96,0.00037808,120]
[421250920,1777287166285,-822.73,0.00037808,120]
[421250921,1777287166294,-1697.87,0.00037808,120]
[421250922,1777287166304,-740.81,0.00037808,120]
[421250923,1777287166314,-725.79,0.00037808,120]
[421250924,1777287166323,-767.5,0.00037808,120]
[421250925,1777287166333,-704.65,0.00037808,120]
[421250926,1777287166343,-874.64,0.00037808,120]
[421250927,1777287166352,-539.51,0.00037808,120]
[421250928,1777287166361,-3139.33,0.00037808,120]
[421250929,1777287166370,-1571.63,0.00037808,120]
[421250930,1777287166379,-631.89,0.00037808,120]
[421250931,1777287166388,-724.47,0.00037808,120]
[421250932,1777287166397,-714.42,0.00037808,120]
[421250933,1777287166406,-830.35,0.00037808,120]
[421250934,1777287166415,-529.87,0.00037808,120]
[421250935,1777287166424,-890.53,0.00037808,120]
[421250936,1777287166433,-633.28,0.00037808,120]
[421250937,1777287166442,-1042.08,0.00037808,120]
[421250938,1777287166452,-1031.26,0.00037808,120]
[421250939,1777287166461,-789.82,0.00037808,120]
[421250940,1777287166470,-1044.44,0.00037808,7]
[421250941,1777287166479,-2152.64,0.00037808,120]
[421250942,1777287166488,-500.0,0.00037808,120]
[421250943,1777287166497,-951.45,0.00037808,120]
[421250944,1777287166506,-10570.76,0.00037808,120]
[421250945,1777287166515,-953.25,0.00037808,120]
[421250946,1777287166525,-500.0,0.00037808,120]
[421250947,1777287166534,-683.94,0.00037808,120]
[421250948,1777287166543,-1457.61,0.00037808,120]
[421250949,1777287166552,-853.59,0.00037808,120]
[421250950,1777287166562,-927.26,0.00037808,120]
[421250951,1777287166571,-692.0,0.00037808,120]
[421250952,1777287166580,-1072.51,0.00037808,120]
[421250953,1777287166589,-2915.57,0.00037808,120]
[421250954,1777287166598,-731.44,0.00037808,120]
[421250955,1777287166607,-701.43,0.00037808,120]
[421250956,1777287166616,-500.0,0.00037808,120]
[421250957,1777287166625,-954.88,0.00037808,120]
[421250958,1777287166635,-838.15,0.00037808,120]
[421250959,1777287166644,-1783.16,0.00037808,120]
[421250960,1777287166653,-212.61702926,0.00037808,120]
[421250961,1777287166663,-4705.11,0.00037808,120]
[421250962,1777287166672,-1730.6,0.00037808,120]
[421250963,1777287166681,-500.0,0.00037808,120]
[421250964,1777287166691,-1123.77,0.00037808,120]
[421250965,1777287166700,-500.0,0.00037808,120]
[421250966,1777287166709,-714.81,0.00037808,120]
[421250967,1777287166718,-1408.68,0.00037808,120]
[421250968,1777287166727,-500.0,0.00037808,120]
[421250969,1777287166736,-5381.05,0.00037808,120]
[421250970,1777287166746,-667.82,0.00037808,120]
[421250971,1777287166755,-1779.59,0.00037808,120]
[421250972,1777287166765,-922.62,0.00037808,120]
[421250973,1777287166775,-625.44,0.00037808,5]
[421250974,1777287166784,-1690.78,0.00037808,120]
[421250975,1777287166793,-674.61,0.00037808,120]
[421250976,1777287166802,-2035.1,0.00037808,120]
[421250977,1777287166811,-500.0,0.00037808,120]
[421250978,1777287166821,-1164.41,0.00037808,120]
[421250979,1777287166830,-1082.08,0.00037808,120]
[421250980,1777287166839,-500.0,0.00037808,120]
[421250981,1777287166849,-998.96,0.00037808,120]
[421250982,1777287166857,-1043.04,0.00037808,120]
[421250983,1777287166867,-784.08,0.00037808,120]
[421250984,1777287166877,-1079.64,0.00037808,120]
[421250985,1777287166886,-1143.94,0.00037808,120]
[421250986,1777287166895,-1451.57,0.00037808,120]
[421250987,1777287166904,-819.21,0.00037808,120]
[421250988,1777287166913,-1138.56,0.00037808,120]
[421250989,1777287166923,-601.09,0.00037808,120]
[421250990,1777287166932,-4201.7,0.00037808,120]
[421250991,1777287166941,-1047.55,0.00037808,120]
[421250992,1777287166951,-996.55,0.00037808,120]
[421250993,1777287166960,-541.91,0.00037808,120]
[421250994,1777287166969,-500.0,0.00037808,120]
[421250995,1777287166978,-795.18,0.00037808,120]
[421250996,1777287166987,-1162.36,0.00037808,120]
[421250997,1777287166996,-845.1,0.00037808,120]
[421250998,1777287167007,-1487.38,0.00037808,120]
[421250999,1777287167016,-500.0,0.00037808,120]
[421251000,1777287167026,-500.0,0.00037808,120]
[421251001,1777287167035,-898.94,0.00037808,120]
[421251002,1777287167044,-2636.09,0.00037808,120]
[421251003,1777287167054,-500.0,0.00037808,120]
[421251004,1777287167063,-1789.45,0.00037808,120]
[421251005,1777287167072,-500.62,0.00037808,120]
[421251006,1777287167082,-892.08,0.00037808,120]
[421251007,1777287167091,-1085.3,0.00037808,120]
[421251008,1777287167100,-631.37,0.00037808,120]
[421251009,1777287167110,-581.62,0.00037808,120]
[421251010,1777287167119,-808.43,0.00037808,120]
[421251011,1777287167128,-741.62,0.00037808,120]
[421251012,1777287167138,-341.16132458,0.00037808,120]
[421251013,1777287167147,-762.27,0.00037808,120]
[421251014,1777287167156,-1157.96,0.00037808,120]
[421251015,1777287167166,-633.93,0.00037808,120]
[421251016,1777287167175,-874.69,0.00037808,120]
[421251017,1777287167184,-900.98,0.00037808,120]
[421251018,1777287167193,-10204.73,0.00037808,120]
[421251019,1777287167202,-1526.17,0.00037808,120]
[421251020,1777287167211,-500.0,0.00037808,120]
[421251021,1777287167220,-500.0,0.00037808,120]
[421251022,1777287167230,-891.6,0.00037808,120]
[421251023,1777287167239,-1367.53,0.00037808,120]
[421251024,1777287167248,-683.25,0.00037808,120]
[421251025,1777287167258,-737.72,0.00037808,120]
[421251026,1777287167267,-10627.51,0.00037808,11]
[421251027,1777287167276,-1508.4,0.00037808,120]
[421251028,1777287167285,-944.61,0.00037808,120]
[421251029,1777287167295,-1952.39,0.00037808,120]
[421251030,1777287167304,-992.31,0.00037808,120]
[421251031,1777287167314,-644.32,0.00037808,120]
[421251032,1777287167325,-855.86,0.00037808,120]
[421251033,1777287167335,-938.15,0.00037808,120]
[421251034,1777287167345,-976.87,0.00037808,120]
[421251035,1777287167355,-500.0,0.00037808,120]
[421251036,1777287167364,-500.0,0.00037808,120]
[421251037,1777287167374,-505.03,0.00037808,120]
[421251038,1777287167383,-889.14,0.00037808,120]
[421251039,1777287167393,-500.0,0.00037808,120]
[421251040,1777287167403,-816.73,0.00037808,120]
[421251041,1777287167412,-624.72,0.00037808,120]
[421251042,1777287167422,-9821.09,0.00037808,14]
[421251043,1777287167431,-523.03,0.00037808,120]
[421251044,1777287167441,-2650.84,0.00037808,2]
[421251045,1777287167450,-500.0,0.00037808,120]
[421251046,1777287167459,-822.98,0.00037808,120]
[421251047,1777287167468,-729.37,0.00037808,120]
[421251048,1777287167477,-1000.0,0.00037808,120]
[421251049,1777287167486,-1044.79,0.00037808,120]
[421251050,1777287167495,-2033.75,0.00037808,120]
[421251051,1777287167505,-2315.34,0.00037808,120]
[421251052,1777287167515,-1144.22,0.00037808,120]
[421251053,1777287167524,-872.94,0.00037808,120]
[421251054,1777287167534,-957.71,0.00037808,120]
[421251055,1777287167543,-651.78,0.00037808,120]
[421251056,1777287167554,-905.69,0.00037808,120]
[421251057,1777287167564,-659.77,0.00037808,120]
[421251058,1777287167573,-572.93,0.00037808,120]
[421251059,1777287167583,-526.89,0.00037808,120]
[421251060,1777287167592,-936.24,0.00037808,120]
[421251061,1777287167602,-2198.73,0.00037808,31]
[421251062,1777287167612,-7236.62,0.00037808,120]
[421251063,1777287167621,-601.2,0.00037808,120]
[421251064,1777287167630,-2000.0,0.00037856,120]
[421251065,1777287167640,-154.12385748,0.000379,120]
[421251066,1777287167649,-194.5,0.000379,120]
[421251067,1777287167662,-2000.0,0.000379,120]
[421251068,1777287167672,-2000.0,0.000379,120]
[421251069,1777287167681,-2026.0,0.000379,120]
[421251070,1777287167690,-458.36,0.00037915,30]
[421251071,1777287167699,-170.379637,0.00037964,23]
[421251072,1777287167709,-50000.0,0.00038,11]
[421251073,1777287167718,-508.57788023,0.00038,4]
[421251074,1777287167727,-354.17,0.00038,14]
[421251075,1777287167737,-175.63,0.00038,7]
[421251076,1777287167747,-175.63,0.00038,7]
[421251077,1777287167756,-2100.74099906,0.00038,120]
[421251078,1777287167765,-202.74035649,0.00038,30]
[421251079,1777287167776,-300.0,0.0003805,2]
[421251080,1777287167786,-1867.63523692,0.00038082,2]
[421251081,1777287167795,-1867.63523692,0.00038082,2]
[421251082,1777287167805,-1867.63523692,0.00038082,2]
[421251083,1777287167815,-40919.8,0.00038082,120]
[421251084,1777287167824,-5510.884336,0.00038082,120]
[421251085,1777287167834,-406.931409,0.00038082,120]
[421251086,1777287167843,-325.762595,0.00038082,120]
[421251087,1777287167853,-342.964341,0.00038082,120]
[421251088,1777287167862,-2698.281126,0.00038082,120]
[421251089,1777287167871,-500.0,0.00038082,120]
[421251090,1777287167880,-863.36,0.00038082,120]
[421251091,1777287167889,-599.06,0.00038082,120]
[421251092,1777287167899,-640.83,0.00038082,120]
[421251093,1777287167908,-565.53,0.00038082,120]
[421251094,1777287167918,-1211.95,0.00038082,120]
[421251095,1777287167927,-553.4,0.00038082,120]
[421251096,1777287167936,-715.07,0.00038082,120]
[421251097,1777287167946,-561.71042416,0.00038082,120]
[421251098,1777287167955,-938.55,0.00038082,120]
[421251099,1777287167965,-1090.36,0.00038082,120]
[421251100,1777287167974,-634.95,0.00038082,120]
[421251101,1777287167984,-528.14,0.00038082,120]
[421251102,1777287167994,-1072.38,0.00038082,120]
[421251103,1777287168004,-1314.31,0.00038082,120]
[421251104,1777287168013,-703.47,0.00038082,120]
[421251105,1777287168023,-500.0,0.00038082,120]
[421251106,1777287168032,-787.64,0.00038082,120]
[421251107,1777287168042,-516.81,0.00038082,120]
[421251108,1777287168051,-2357.31,0.00038082,120]
[421251109,1777287168060,-1649.9,0.00038082,30]
[421251110,1777287168070,-527.75,0.00038082,120]
[421251111,1777287168079,-663.98,0.00038082,120]
[421251112,1777287168088,-752.81,0.00038082,120]
[421251113,1777287168098,-696.22,0.00038082,120]
[421251114,1777287168108,-285.62192106,0.00038082,120]
[421251115,1777287168117,-1446.95,0.00038082,120]
[421251116,1777287168126,-964.96,0.00038082,120]
[421251117,1777287168136,-529.41,0.00038082,120]
[421251118,1777287168146,-433.8524878,0.00038082,120]
[421251119,1777287168155,-500.0,0.00038082,120]
[421251120,1777287168164,-500.0,0.00038082,120]
[421251121,1777287168174,-1077.32,0.00038082,120]
[421251122,1777287168184,-949.83,0.00038082,120]
[421251123,1777287168193,-765.4,0.00038082,120]
[421251124,1777287168203,-599.76,0.00038082,120]
[421251125,1777287168213,-432.81193895,0.00038082,120]
[421251126,1777287168222,-500.0,0.00038082,120]
[421251127,1777287168232,-812.99,0.00038082,120]
[421251128,1777287168242,-1319.91,0.00038082,120]
[421251129,1777287168251,-559.35,0.00038082,120]
[421251130,1777287168261,-1706.39,0.00038082,120]
[421251131,1777287168270,-170.64418742,0.00038082,120]
[421251132,1777287168280,-668.63,0.00038082,120]
[421251133,1777287168289,-1799.8,0.00038082,30]
[421251134,1777287168299,-2310.82,0.00038082,120]
[421251135,1777287168308,-500.0,0.00038082,120]
[421251136,1777287168317,-951.83,0.00038082,120]
[421251137,1777287168327,-500.0,0.00038082,120]
[421251138,1777287168337,-500.0,0.00038082,120]
[421251139,1777287168346,-691.55,0.00038082,120]
[421251140,1777287168357,-822.42,0.00038082,120]
[421251141,1777287168367,-1041.51,0.00038082,120]
[421251142,1777287168376,-690.22,0.00038082,120]
[421251143,1777287168385,-817.53,0.00038082,120]
[421251144,1777287168395,-500.0,0.00038082,120]
[421251145,1777287168404,-500.0,0.00038082,120]
[421251146,1777287168414,-812.8,0.00038082,120]
[421251147,1777287168423,-894.99,0.00038082,120]
[421251148,1777287168434,-500.0,0.00038082,120]
[421251149,1777287168444,-1018.47,0.00038082,120]
[421251150,1777287168453,-1560.45,0.00038082,10]
[421251151,1777287168462,-654.65,0.00038082,120]
[421251152,1777287168472,-770.15,0.00038082,120]
[421251153,1777287168481,-747.23,0.00038082,120]
[421251154,1777287168491,-592.21,0.00038082,120]
[421251155,1777287168500,-1047.65,0.00038082,120]
[421251156,1777287168510,-500.0,0.00038082,120]
[421251157,1777287168520,-548.93,0.00038082,120]
[421251158,1777287168529,-1885.25,0.00038082,120]
[421251159,1777287168539,-810.82,0.00038082,120]
[421251160,1777287168548,-632.88,0.00038082,120]
[421251161,1777287168557,-1242.85,0.00038082,120]
[421251162,1777287168567,-696.25,0.00038082,120]
[421251163,1777287168576,-1579.01,0.00038082,120]
[421251164,1777287168586,-601.37,0.00038082,120]
[421251165,1777287168596,-1456.44,0.00038082,120]
[421251166,1777287168606,-595.98,0.00038082,120]
[421251167,1777287168615,-500.0,0.00038082,120]
[421251168,1777287168626,-1572.92,0.00038082,120]
[421251169,1777287168636,-500.0,0.00038082,120]
[421251170,1777287168645,-685.94,0.00038082,120]
[421251171,1777287168655,-1223.21,0.00038082,120]
[421251172,1777287168665,-996.26,0.00038082,120]
[421251173,1777287168675,-987.31,0.00038082,120]
[421251174,1777287168685,-977.11,0.00038082,120]
[421251175,1777287168695,-1114.4,0.00038082,120]
[421251176,1777287168705,-922.87,0.00038082,120]
[421251177,1777287168715,-694.64,0.00038082,120]
[421251178,1777287168724,-876.6,0.00038082,120]
[421251179,1777287168733,-1292.17,0.00038082,120]
[421251180,1777287168743,-500.0,0.00038082,120]
[421251181,1777287168752,-2804.65,0.00038082,120]
[421251182,1777287168763,-831.75,0.00038082,14]
[421251183,1777287168772,-695.08,0.00038082,120]
[421251184,1777287168782,-975.03,0.00038082,120]
[421251185,1777287168792,-667.25,0.00038082,120]
[421251186,1777287168802,-500.0,0.00038082,120]
[421251187,1777287168811,-500.0,0.00038082,120]
[421251188,1777287168821,-514.22,0.00038082,120]
[421251189,1777287168830,-808.81,0.00038082,120]
[421251190,1777287168840,-656.37,0.00038082,120]
[421251191,1777287168850,-1754.83,0.00038082,120]
[421251192,1777287168860,-809.84,0.00038082,120]
[421251193,1777287168871,-924.49,0.00038082,120]
[421251194,1777287168880,-816.58,0.00038082,120]
[421251195,1777287168890,-1699.99,0.00038082,120]
[421251196,1777287168900,-963.43,0.00038082,120]
[421251197,1777287168910,-988.21,0.00038082,120]
[421251198,1777287168920,-803.53,0.00038082,120]
[421251199,1777287168930,-500.0,0.00038082,120]
[421251200,1777287168940,-983.75,0.00038082,120]
[421251201,1777287168950,-806.48,0.00038082,120]
[421251202,1777287168960,-1721.56,0.00038082,120]
[421251203,1777287168970,-899.89,0.00038082,120]
[421251204,1777287168980,-1666.52,0.00038082,120]
[421251205,1777287168990,-903.54,0.00038082,120]
[421251206,1777287168999,-640.16,0.00038082,120]
[421251207,1777287169010,-2805.42,0.00038082,120]
[421251208,1777287169020,-1658.74,0.00038082,120]
[421251209,1777287169030,-507.17,0.00038082,120]
[421251210,1777287169040,-760.12,0.00038082,120]
[421251211,1777287169050,-1131.48,0.00038082,120]
[421251212,1777287169060,-387.64043978,0.00038082,120]
[421251213,1777287169069,-1275.35,0.00038082,120]
[421251214,1777287169080,-1746.47,0.00038082,120]
[421251215,1777287169090,-1186.63,0.00038082,120]
[421251216,1777287169099,-726.02,0.00038082,120]
[421251217,1777287169109,-857.8,0.00038082,120]
[421251218,1777287169119,-942.29,0.00038082,120]
[421251219,1777287169129,-888.77,0.00038082,120]
[421251220,1777287169139,-615.52,0.00038082,120]
[421251221,1777287169149,-691.21,0.00038082,120]
[421251222,1777287169159,-1549.89,0.00038082,120]
[421251223,1777287169168,-597.1,0.00038082,120]
[421251224,1777287169179,-646.3,0.00038082,120]
[421251225,1777287169190,-516.45,0.00038082,120]
[421251226,1777287169200,-996.25,0.00038082,120]
[421251227,1777287169210,-729.86,0.00038082,120]
[421251228,1777287169220,-862.2,0.00038082,120]
[421251229,1777287169230,-902.68,0.00038082,120]
[421251230,1777287169240,-277.39021729,0.00038082,120]
[421251231,1777287169250,-932.95,0.00038082,120]
[421251232,1777287169259,-501.5,0.00038082,120]
[421251233,1777287169268,-932.07,0.00038082,120]
[421251234,1777287169278,-638.61,0.00038082,120]
[421251235,1777287169288,-946.6,0.00038082,120]
[421251236,1777287169299,-500.0,0.00038082,120]
[421251237,1777287169308,-1014.18,0.00038082,120]
[421251238,1777287169318,-714.89,0.00038082,120]
[421251239,1777287169328,-1988.17,0.00038082,120]
[421251240,1777287169338,-563.81,0.00038082,120]
[421251241,1777287169348,-1640.34,0.00038082,120]
[421251242,1777287169357,-500.0,0.00038082,120]
[421251243,1777287169366,-885.91,0.00038082,120]
[421251244,1777287169376,-891.92,0.00038082,120]
[421251245,1777287169386,-669.56,0.00038082,120]
[421251246,1777287169395,-500.0,0.00038082,120]
[421251247,1777287169405,-1390.78,0.00038082,120]
[421251248,1777287169415,-668.1,0.00038082,120]
[421251249,1777287169425,-660.18,0.00038082,120]
[421251250,1777287169435,-691.69,0.00038082,120]
[421251251,1777287169445,-691.03,0.00038082,120]
[421251252,1777287169454,-500.0,0.00038082,120]
[421251253,1777287169464,-618.59,0.00038082,30]
[421251254,1777287169474,-922.63,0.00038082,120]
[421251255,1777287169484,-953.58,0.00038082,120]
[421251256,1777287169852,-525.11,0.00038082,120]
[421251257,1777287169862,-4917.9,0.00038082,120]
[421251258,1777287169872,-551.36,0.00038082,120]
[421251259,1777287169881,-840.29,0.00038082,120]
[421251260,1777287169891,-1800.54,0.00038082,120]
[421251261,1777287169900,-919.84,0.00038082,120]
[421251262,1777287169909,-739.88,0.00038082,120]
[421251263,1777287169920,-500.0,0.00038082,120]
[421251264,1777287169930,-1344.25,0.00038082,120]
[421251265,1777287169940,-500.0,0.00038082,60]
[421251266,1777287169949,-916.78,0.00038082,120]
[421251267,1777287169959,-1078.03,0.00038082,120]
[421251268,1777287169969,-1345.97,0.00038082,120]
[421251269,1777287169978,-947.63,0.00038082,120]
[421251270,1777287169988,-549.91,0.00038082,120]
[421251271,1777287169997,-748.29,0.00038082,120]
[421251272,1777287170007,-1742.02,0.00038082,120]
[421251273,1777287170017,-980.13,0.00038082,120]
[421251274,1777287170026,-547.89,0.00038082,120]
[421251275,1777287170036,-808.71,0.00038082,120]
[421251276,1777287170046,-697.0,0.00038082,120]
[421251277,1777287170056,-698.74,0.00038082,120]
[421251278,1777287170066,-861.18,0.00038082,120]
[421251279,1777287170076,-599.72,0.00038082,120]
[421251280,1777287170085,-971.15,0.00038082,120]
[421251281,1777287170095,-1898.91,0.00038082,120]
[421251282,1777287170105,-2008.02,0.00038082,120]
[421251283,1777287170115,-500.0,0.00038082,120]
[421251284,1777287170124,-546.88,0.00038082,120]
[421251285,1777287170134,-500.0,0.00038082,120]
[421251286,1777287170143,-933.2,0.00038082,120]
[421251287,1777287170153,-923.43,0.00038082,120]
[421251288,1777287170162,-814.23,0.00038082,7]
[421251289,1777287170172,-500.0,0.00038082,120]
[421251290,1777287170183,-545.89,0.00038082,120]
[421251291,1777287170192,-607.22,0.00038082,120]
[421251292,1777287170202,-1022.01,0.00038082,120]
[421251293,1777287170212,-1403.37,0.00038082,120]
[421251294,1777287170221,-996.98,0.00038082,120]
[421251295,1777287170231,-571.92,0.00038082,120]
[421251296,1777287170240,-500.0,0.00038082,120]
[421251297,1777287170250,-500.0,0.00038082,120]
[421251298,1777287170259,-2027.39,0.00038082,120]
[421251299,1777287170269,-544.78,0.00038082,120]
[421251300,1777287170279,-1173.63,0.00038082,120]
[421251301,1777287170288,-580.92,0.00038082,120]
[421251302,1777287170298,-957.19,0.00038082,120]
[421251303,1777287170308,-174.76090825,0.00038082,120]
[421251304,1777287170318,-1129.42,0.00038082,120]
[421251305,1777287170328,-549.6,0.00038082,120]
[421251306,1777287170338,-500.0,0.00038082,120]
[421251307,1777287170348,-957.72,0.00038082,120]
[421251308,1777287170358,-2273.93,0.00038082,120]
[421251309,1777287170367,-531.34,0.00038082,120]
[421251310,1777287170377,-500.0,0.00038082,120]
[421251311,1777287170387,-826.33,0.00038082,120]
[421251312,1777287170397,-509.36,0.00038082,120]
[421251313,1777287170407,-1144.83,0.00038082,120]
[421251314,1777287170416,-870.72,0.00038082,120]
[421251315,1777287170425,-1987.57,0.00038082,120]
[421251316,1777287170435,-1889.91,0.00038082,120]
[421251317,1777287170444,-997.41,0.00038082,120]
[421251318,1777287170453,-645.47,0.00038082,120]
[421251319,1777287170462,-551.39,0.00038082,120]
[421251320,1777287170471,-607.71,0.00038082,120]
[421251321,1777287170481,-1410.28,0.00038082,120]
[421251322,1777287170491,-1075.28,0.00038082,120]
[421251323,1777287170501,-512.2,0.00038082,120]
[421251324,1777287170510,-571.84,0.00038082,120]
[421251325,1777287170520,-500.0,0.00038082,120]
[421251326,1777287170530,-670.88,0.00038082,120]
[421251327,1777287170539,-927.87,0.00038082,120]
[421251328,1777287170549,-733.46,0.00038082,120]
[421251329,1777287170559,-845.56,0.00038082,120]
[421251330,1777287170568,-500.0,0.00038082,120]
[421251331,1777287170579,-1708.75,0.00038082,120]
[421251332,1777287170588,-1389.02,0.00038082,120]
[421251333,1777287170598,-969.99,0.00038082,120]
[421251334,1777287170607,-721.4,0.00038082,120]
[421251335,1777287170617,-832.2,0.00038082,120]
[421251336,1777287170627,-1256.96,0.00038082,120]
[421251337,1777287170636,-822.73,0.00038082,120]
[421251338,1777287170646,-1697.87,0.00038082,120]
[421251339,1777287170656,-740.81,0.00038082,120]
[421251340,1777287170666,-767.5,0.00038082,120]
[421251341,1777287170675,-704.65,0.00038082,120]
[421251342,1777287170685,-874.64,0.00038082,120]
[421251343,1777287170694,-725.79,0.00038082,120]
[421251344,1777287170704,-539.51,0.00038082,120]
[421251345,1777287170713,-3139.33,0.00038082,120]
[421251346,1777287170722,-1571.63,0.00038082,120]
[421251347,1777287170733,-631.89,0.00038082,120]
[421251348,1777287170743,-724.47,0.00038082,120]
[421251349,1777287170753,-714.42,0.00038082,120]
[421251350,1777287170763,-830.35,0.00038082,120]
[421251351,1777287170774,-529.87,0.00038082,120]
[421251352,1777287170784,-890.53,0.00038082,120]
[421251353,1777287170794,-633.28,0.00038082,120]
[421251354,1777287170804,-1042.08,0.00038082,120]
[421251355,1777287170813,-1031.26,0.00038082,120]
[421251356,1777287170823,-789.82,0.00038082,120]
[421251357,1777287170833,-1044.44,0.00038082,7]
[421251358,1777287170842,-2152.64,0.00038082,120]
[421251359,1777287170852,-951.45,0.00038082,120]
[421251360,1777287170861,-500.0,0.00038082,120]